Cogmind - Beta 17 @@@ ROGUE MODE // 2026.07.17 @ 18:36:08 Player: Suffixing Result: Destroyed by 0K-DD4(j) with Overtuned Pulse Rifle Performance ------------- Evolutions (0) 0 Regions Visited (3) 600 Robots Destroyed (23) 115 Value Destroyed (686) 686 Prototype IDs (4) 80 Alien Tech Used (0) 0 Bonus (800) 800 TOTAL SCORE: 2281 Bonus ------- Registered with UFD 300 Met Optimus in HQ 500 Cogmind --------- Core Integrity 0/250 Matter 265/300 Energy 100/100 System Corruption 0% Temperature Cool (12) Movement Treading (320) Ox2 Location -9/Scraptown Parts ------- > --- POWER (1) -------- (None) > --- PROPULSION (2) --- Light Treads > --- UTILITY (2) ------ High-capacity Storage Unit > --- WEAPON (2) ------- Companion Sword > --- INVENTORY (20) --- Ion Engine Overtuned Titanium Leg VSS Leg Makeshift Leg Scrap Suit Deep Structural Scanner Machine Analyzer IFF Parser Surveybot 17 Chip A0-MCA's Component Scanner Mapping Drone Bay (3/3) Assault Rifle Battle Cannon Grenade Launcher Heavy Rocket Launcher Peak State ------------ > --- POWER ------------ Ion Engine > --- PROPULSION ------- Light Treads Wheel > --- UTILITY ---------- Improved Heat Sink High-capacity Storage Unit > --- WEAPON ----------- Beam Cannon Companion Sword > --- INVENTORY -------- Light Ion Engine Makeshift Leg Disposable Heat Sink Propulsion Shielding Beam Cannon Beam Cannon Beam Cannon Beam Cannon Assault Rifle Assault Rifle Assault Rifle Assault Rifle Assault Rifle Assault Rifle Battle Cannon Grenade Launcher [Rating: 16] Favorites ----------- Power Ion Engine Engine Ion Engine Propulsion Light Treads Treads Light Treads Leg Aluminum Leg Wheel Wheel Utility High-capacity Storage Unit Device Improved Heat Sink Storage High-capacity Storage Unit Weapon Beam Cannon Energy Gun Small Laser Energy Cannon Beam Cannon Ballistic Gun Assault Rifle Slashing Weapon Companion Sword Build | -11 -10 -10 -9 ------- Run | Yrd Mat Sub Scr Slots Evolved . | . . . . Power . | . . . . Propulsion . | . . . . Utility . | . . . . Weapon . | . . . . Parts Attached 17 | 4 8 4 1 Power 2 | . 2 . . Engine 2 | . 2 . . Core . | . . . . Reactor . | . . . . Propulsion 4 | 2 1 1 . Treads 3 | 2 1 . . Leg . | . . . . Wheel 1 | . . 1 . Hover . | . . . . Flight . | . . . . Utility 2 | . 2 . . Device 1 | . 1 . . Storage 1 | . 1 . . Processor . | . . . . Hackware . | . . . . Protection . | . . . . Artifact . | . . . . Weapon 9 | 2 3 3 1 Energy Gun 2 | 2 . . . Energy Cannon 3 | . . 3 . Ballistic Gun 3 | . 3 . . Ballistic Cannon . | . . . . Launcher . | . . . . Special Weapon . | . . . . Impact Weapon . | . . . . Slashing Weapon 1 | . . . 1 Piercing Weapon . | . . . . Special Melee Weapon . | . . . . Unidentified Prototypes 1 | . . . 1 Parts Lost 6 | . 2 3 1 Power 1 | . 1 . . Propulsion 3 | . . 2 1 Utility . | . . . . Weapon 2 | . 1 1 . Highest Loss Streak 3 | . 2 3 1 To Critical Strikes . | . . . . Average Backups 13 | 6 7 16 15 Power 1 | 1 . 3 1 Propulsion 1 | 4 1 2 1 Utility 1 | . . . 4 Weapon 8 | 1 5 10 8 Tool/Special . | . . . . Unused Backups 25 | . 1 . 24 Power 3 | . . . 3 Propulsion 3 | . . . 3 Utility 10 | . 1 . 9 Weapon 9 | . . . 9 Tool/Special . | . . . . Average Slot Usage (%) 91 | . 94 99 79 Engine 12 | . 13 14 10 Treads 20 | . 28 22 13 Wheel 6 | . . 5 13 Device 12 | . 11 14 10 Storage 13 | . 14 14 13 Energy Gun 2 | . 10 . . Energy Cannon 12 | . . 27 5 Ballistic Gun 3 | . 14 . . Slashing Weapon 3 | . . . 10 Peak Build Rating 16 | 6 10 12 16 Average Rating 11 | 6 8 10 14 On Entrance 8 | 6 6 10 12 Avg Prop Armor Cover (%) 15 | . . 12 16 Naked Turns 75 | . . . 75 Heaviest Build 52 | 11 50 52 52 Greatest Support 40 | 40 40 40 20 Greatest Overweight (x) 5 | . 1 5 5 Average Overweight (x) 2 | . . 2 3 Largest Inventory Capacity 20 | 8 20 20 20 Average Capacity 18 | 8 15 20 19 Most Carried 20 | 6 15 20 20 Average Carried 13 | 4 7 16 15 Final Capacity 20 | 8 20 20 20 Final Carried 20 | 2 14 20 16 Class Distribution -------------------- 100% | Mutant Dominant Class ---------------- Mutant | -10/Materials Mutant | -10/Subcaves Mutant | -9/Scraptown Resources | -11 -10 -10 -9 ----------- Run | Yrd Mat Sub Scr Matter Collected 476 | 200 210 46 20 Remotely . | . . . . Salvage Created 926 | . 529 397 . Parts 45 | . 19 26 . Haulers Intercepted 2 | . 2 . . Recyclers Shooed . | . . . . Parts Field Recycled . | . . . . Retrieved Matter . | . . . . Parts Self-Destructed 16 | . . 16 . Prevented . | . . . . Parts Restored . | . . . . Kills | -11 -10 -10 -9 ------- Run | Yrd Mat Sub Scr Combat Hostiles Destroyed 20 | . 9 11 . Guns 9 | . 8 1 . Cannons 10 | . . 10 . Classes Destroyed 6 | . 4 2 . Hauler 2 | . 2 . . Recycler 1 | . 1 . . Swarmer 4 | . . 4 . Grunt 8 | . 8 . . Sentry 1 | . . 1 . Subdweller 7 | . 1 6 . Best Kill Streak 4 | . 3 4 . Combat Bots Only 4 | . 3 4 . Max Kills in Single Turn 1 | . 1 1 . Gunslinging . | . . . . Exploded . | . . . . Melee . | . . . . Uniques/NPCs Destroyed . | . . . . Combat | -11 -10 -10 -9 -------- Run | Yrd Mat Sub Scr Hostile Shots Fired 109 | . 46 61 2 Missed 36 | . 18 18 . Hits 73 | . 28 43 2 Projectile 73 | . 28 43 2 Critical Strikes 2 | . 2 . . Damage Taken 1301 | . 518 736 47 Core 250 | . 50 177 23 Absorbed by Shields . | . . . . Regen/Repaired (Parts) 69 | . 69 . . Core Remaining (%) 100 | 100 . . . Volleys Fired 76 | . 42 34 . Largest 2 | . 2 2 . Hottest 120 | . 90 120 . Shots Fired 149 | . 83 66 . Gun 85 | . 83 2 . Cannon 64 | . . 64 . Launcher . | . . . . Special . | . . . . Kinetic 32 | . 30 2 . Thermal 117 | . 53 64 . Explosive . | . . . . Electromagnetic . | . . . . Robot Hit Streak 12 | . 12 7 . Robot Miss Streak 2 | . 2 2 . Penetration Max . | . . . . Secondary Targets 1 | . 1 . . Max Gunslinging Chain 1 | . 1 . . Shots Hit Robots 103 | . 65 38 . Core Hits 43 | . 25 18 . Critical Kills . | . . . . Critical Parts Destroyed 1 | . 1 . . Critical Strikes 2 | . 2 . . Burn 1 | . 1 . . Destroy 1 | . 1 . . Melee Attacks . | . . . . Impact . | . . . . Slashing . | . . . . Piercing . | . . . . Sneak Attacks . | . . . . Combat Hostiles . | . . . . Follow-up Attacks . | . . . . Damage Inflicted 1439 | . 786 653 . Guns 809 | . 786 23 . Cannons 630 | . . 630 . Explosions . | . . . . Melee . | . . . . Ramming . | . . . . Kinetic 317 | . 294 23 . Thermal 1122 | . 492 630 . Explosive . | . . . . Electromagnetic . | . . . . Impact . | . . . . Slashing . | . . . . Piercing . | . . . . Highest Corruption . | . . . . Average Corruption . | . . . . Corruption Purged . | . . . . Corruption Blocked . | . . . . Overload Shots . | . . . . Overflow Damage . | . . . . Projectiles . | . . . . Explosions . | . . . . Melee . | . . . . Knockbacks . | . . . . Impact . | . . . . Kinetic . | . . . . Secondary . | . . . . Self-Inflicted Damage . | . . . . Shots . | . . . . Rammed . | . . . . Targets Rammed . | . . . . Kicked . | . . . . Crushed . | . . . . Highest Temperature 156 | . 156 . . Average Temperature 43 | . 43 . . Received Heat Transfer 366 | . 258 84 24 Siege Activations . | . . . . Martial Activations . | . . . . Shielding Activations . | . . . . Robots Disrupted . | . . . . Combat Hostiles . | . . . . Robots Corrupted . | . . . . Combat Hostiles . | . . . . Parts Fried . | . . . . Impact Corruptions . | . . . . Robots Melted 2 | . 2 . . Combat Hostiles 1 | . 1 . . Parts Melted 5 | . 3 2 . Heat Transferred 2708 | . 1376 1332 . Parts Sabotaged . | . . . . Parts Stolen . | . . . . Parts Stripped . | . . . . Power Chain Reactions . | . . . . Alert | -11 -10 -10 -9 ------- Run | Yrd Mat Sub Scr Maximum Alert Level . | . . . . Low Security (%) 100 | 100 100 . . Level 1 . | . . . . Level 2 . | . . . . Level 3 . | . . . . Level 4 . | . . . . Level 5 . | . . . . High Security . | . . . . Max Security . | . . . . Peak Influence 75 | . 75 . . Initial . | . . . . Average 14 | . 14 . . Influence Increases 413 | . 253 160 . Destroy 0b10 Robot/C 260 | . 160 100 . Destroy 0b10 Robot/NC 15 | . 15 . . Destroy Leader 44 | . 44 . . Successful Hack 3 | . 3 . . Destroy Structure 1 | . 1 . . Lose Combat Pursuer 90 | . 30 60 . Influence Decreases 413 | . 253 160 . Time Decay 379 | . 249 130 . Lost Part 34 | . 4 30 . Squads Dispatched 1 | . 1 . . Investigation 1 | . 1 . . Extermination . | . . . . Reinforcement . | . . . . Assault . | . . . . Garrison . | . . . . Intercept . | . . . . Searches Triggered . | . . . . Construction Impeded . | . . . . Haulers Reinforced . | . . . . Active Scanning Responses . | . . . . Cargo Convoy Interrupts . | . . . . Stealth | -11 -10 -10 -9 --------- Run | Yrd Mat Sub Scr Distress Signals 3 | . 3 . . Communications Jammed . | . . . . Distress Signals . | . . . . Times Spotted 45 | . 23 14 8 Peak Tracking Total 6 | . 4 6 4 Tactical Retreats 4 | . 2 2 . Traps | -11 -10 -10 -9 ------- Run | Yrd Mat Sub Scr Traps Triggered 5 | . 3 2 . Indirectly . | . . . . Trap Hack Attempts . | . . . . Triggered . | . . . . Disarmed . | . . . . Reprogrammed . | . . . . Reused . | . . . . Traps Extracted . | . . . . Installed . | . . . . Triggered . | . . . . Machines | -11 -10 -10 -9 ---------- Run | Yrd Mat Sub Scr Machines Disabled . | . . . . Max in Single Turn . | . . . . Machines Repaired . | . . . . Machines Dismantled . | . . . . Machines Sabotaged . | . . . . Overloaded Fab Kills . | . . . . Hacking | -11 -10 -10 -9 --------- Run | Yrd Mat Sub Scr Machines Accessed 7 | . 4 . 3 Terminals 3 | . 3 . . Fabricators . | . . . . Repair Stations 1 | . 1 . . Recycling Units . | . . . . Scanalyzers . | . . . . Garrison Access . | . . . . Total Hacks 24 | . 5 . 19 Successful 23 | . 4 . 19 Failed 1 | . 1 . . Catastrophic . | . . . . Database Lockouts . | . . . . Manual . | . . . . Terminals 3 | . 3 . . Fabricators . | . . . . Repair Stations 2 | . 2 . . Recycling Units . | . . . . Scanalyzers . | . . . . Garrison Access . | . . . . Terminal Hacks 21 | . 2 . 19 Record 18 | . . . 18 Prototype ID Bank 2 | . 2 . . Open Door 1 | . . . 1 Fabricator Hacks . | . . . . Repair Station Hacks 2 | . 2 . . Scan Component 1 | . 1 . . Repair 1 | . 1 . . Recycling Unit Hacks . | . . . . Scanalyzer . | . . . . Garrison Access Hacks . | . . . . Unauthorized Hacks . | . . . . Terminals . | . . . . Fabricators . | . . . . Repair Stations . | . . . . Recycling Units . | . . . . Scanalyzers . | . . . . Garrison Access . | . . . . Data Cores Recovered . | . . . . Used . | . . . . Hacking Detections 1 | . 1 . . Full Trace Events . | . . . . Feedback Events . | . . . . Feedback Blocked . | . . . . Robot Schematics Acquired . | . . . . Robots Built . | . . . . Authchips . | . . . . Time . | . . . . Total Robot Build Rating . | . . . . Part Schematics Acquired . | . . . . Parts Built . | . . . . Authchips . | . . . . Time . | . . . . Total Part Build Rating . | . . . . Part Studies Acquired . | . . . . Parts Repaired 1 | . 1 . . Time 26 | . 26 . . Parts Recycled . | . . . . Recycled Matter . | . . . . Retrieved Matter . | . . . . Retrieved Components . | . . . . Parts Scanalyzed . | . . . . Part Schematics Acquired . | . . . . Parts Damaged . | . . . . Bothacking | -11 -10 -10 -9 ------------ Run | Yrd Mat Sub Scr Used RIF Installer . | . . . . Robots Hacked . | . . . . Non-combat . | . . . . Combat . | . . . . Robot Hacks Applied . | . . . . Relay Couplers Released . | . . . . Fabnet Peak Effective % . | . . . . Robots Rewired . | . . . . Allies Hacked . | . . . . Hacks Repelled . | . . . . Allies | -11 -10 -10 -9 -------- Run | Yrd Mat Sub Scr Total Allies . | . . . . Largest Group . | . . . . Highest-Rated Group . | . . . . Highest-Rated Ally . | . . . . Total Orders . | . . . . Ally Attacks . | . . . . Total Damage . | . . . . Kills . | . . . . Allies Corrupted . | . . . . Allies Melted 1 | . . . 1 Intel | -11 -10 -10 -9 ------- Run | Yrd Mat Sub Scr Active Infowar (turns) . | . . . . Robot Analysis Total . | . . . . Derelict Logs Recovered 3 | . . . 3 Drone Launches . | . . . . Drone Recoveries . | . . . . Exploration | -11 -10 -10 -9 ------------- Run | Yrd Mat Sub Scr Turns Passed 6575 | 9 1714 2462 2390 Spaces Moved 3417 | 1 694 1163 1559 Core 142 | . . . 142 Treads 1292 | 1 694 594 3 Legs . | . . . . Wheels 1983 | . . 569 1414 Hover . | . . . . Flight . | . . . . Fastest Speed 50 | 160 160 155 50 Average Speed 170 | 160 205 198 134 Slowest Speed 320 | 160 240 240 320 Overloaded Moves . | . . . . Propulsion Burnouts . | . . . . Robots Hopped . | . . . . Potential Cave-ins . | . . . . Cave-ins Triggered . | . . . . Exploration Rate (%) 53 | 2 91 39 81 Regions Visited 3 Branch Regions 2 Pre-discovered Areas 3 | . . . 3 Known Exits Taken . | . . . . Unknown Exits Taken 3 | 1 1 1 . Scrap Searched 5 | . . 3 2 Spaces Dug . | . . . . Terrain Destroyed . | . . . . Melee . | . . . . Projectile . | . . . . AOE . | . . . . Terrain Rammed . | . . . . Walls Destroyed . | . . . . Machines Disabled . | . . . . Actions | -11 -10 -10 -9 --------- Run | Yrd Mat Sub Scr Total 4010 | 8 899 1248 1855 Wait 421 | . 136 38 247 Move 3414 | . 693 1162 1559 Hop . | . . . . Pick Up 51 | . 18 9 24 Fast Attach 3 | . . . 3 Attach 9 | . 4 3 2 Detach . | . . . . Swap 11 | 4 4 2 1 Drop 25 | 4 2 . 19 Fire 76 | . 42 34 . Melee . | . . . . Ram . | . . . . Kick . | . . . . Crush . | . . . . Escape Stasis . | . . . . Rewire . | . . . . Trap . | . . . . Miscellaneous . | . . . . Route ------- -11/Scrapyard -10/Materials (discovered 6 exits: [*Mat x3] / [*Min x2] / [*Sub]) -10/Subcaves (discovered 3 exits: [*Mat x2] / *Scr) -9/Scraptown (discovered 2 exits: *Fac x2) History --------- Turn | Location | Event 10 | -11/Scrapyard | Discovered new exit (range 0) 10 | -11/Scrapyard | Entered Materials 139 | -10/Materials | Discovered new exit (range 3) 303 | -10/Materials | Build established: Mutant 464 | -10/Materials | Discovered new exit (range 8) 465 | -10/Materials | Discovered new exit (range 16) 802 | -10/Materials | Discovered new exit (range 9) 810 | -10/Materials | Derelicts attacked the area 1192 | -10/Materials | Discovered new exit (range 6) 1359 | -10/Materials | Repaired Assault Rifle 1685 | -10/Materials | Discovered new exit (range 7) 1724 | -10/Materials | Entered Subcaves 1725 | -10/Subcaves | Approached by a straggling Scientist 2363 | -10/Subcaves | Discovered new exit (range 10) 2407 | -10/Subcaves | Core integrity fell below 50% 2432 | -10/Subcaves | Discovered new exit (range 8) 2859 | -10/Subcaves | A swath of the cavern ceiling suddenly collapsed 3296 | -10/Subcaves | Lost 3 parts (2n1w) 3961 | -10/Subcaves | Core integrity fell below 20% 4186 | -10/Subcaves | Entered Scraptown 4307 | -9/Scraptown | Visited Cyclists 4318 | -9/Scraptown | Visited Observation Area 4489 | -9/Scraptown | Scanned Subdweller tech in exchange for log data 4497 | -9/Scraptown | Learned location of 1 exit from Lower Caves 4498 | -9/Scraptown | Learned Factory garrison access intel 4500 | -9/Scraptown | Learned Factory security intel 4564 | -9/Scraptown | Visited Fellowship of the Rings 4573 | -9/Scraptown | Visited SPCMW 4595 | -9/Scraptown | Visited UFD Registry 4595 | -9/Scraptown | Registered with UFD as "Thunderdome" 4638 | -9/Scraptown | Visited Sword Containment 4653 | -9/Scraptown | Found Prototype Slashing Weapon 4654 | -9/Scraptown | Identified Companion Sword 4687 | -9/Scraptown | Visited Scrapoid Pod Storage 4711 | -9/Scraptown | Visited Scrap Suit Storage 4728 | -9/Scraptown | Visited Scrapoid Research Area 4747 | -9/Scraptown | Visited Supply Room 4815 | -9/Scraptown | Visited Supply Room 4844 | -9/Scraptown | Visited A0-MCA Data Center 4852 | -9/Scraptown | Given a C rating by A0-MCA 4857 | -9/Scraptown | Found A0-MCA's Component Scanner 4893 | -9/Scraptown | Visited Cartography Club 4988 | -9/Scraptown | Visited Comm Corps 5076 | -9/Scraptown | Visited Spacefarers 5282 | -9/Scraptown | Discovered new exit (range 13) 5768 | -9/Scraptown | Entered Cyclist Reading Room 6001 | -9/Scraptown | Released all parts (6) 6017 | -9/Scraptown | Found Surveybot 17 Chip 6052 | -9/Scraptown | Found Deep Structural Scanner 6058 | -9/Scraptown | Learned location of Lower Caves (-7) 6058 | -9/Scraptown | Learned location of Cetus (-6) 6058 | -9/Scraptown | Learned 8 Factory zone layouts 6058 | -9/Scraptown | Learned 20 Factory zone layouts 6058 | -9/Scraptown | Learned 8 Access zone layouts 6058 | -9/Scraptown | Learned 8 Upper Caves zone layouts 6058 | -9/Scraptown | Learned 16 Upper Caves zone layouts 6058 | -9/Scraptown | Identified exit to Factory 6058 | -9/Scraptown | Learned 24 Upper Caves zone layouts 6058 | -9/Scraptown | Learned 12 Proximity Caves zone layouts 6058 | -9/Scraptown | Learned Storage emergency access door positions 6058 | -9/Scraptown | Learned location of 2 exits from Research 6058 | -9/Scraptown | Learned location of 2 exits from Proximity Caves 6058 | -9/Scraptown | Learned location of 3 exits from Proximity Caves 6199 | -9/Scraptown | Met Optimus 6199 | -9/Scraptown | Accepted into 0bPrime 6270 | -9/Scraptown | Found Scrap Suit 6532 | -9/Scraptown | Civil war broke out across Scraptown 6576 | -9/Scraptown | Destroyed by 0K-DD4(j) with Overtuned Pulse Rifle Last Messages --------------- 06558_ Bolt penetrates Wall. 06558_ Bolt penetrates CN-DFO(E). 06559_ CY-UPU(h) suffers critical hit (Destroy). 06559_ CY-UPU(h) destroyed. 06560_ 2P-NKF(j) destroyed. 06560_ C-Scrubber disabled. 06563_ GM-8PJ(c) exits level. 06564_ Acquired VSS Leg. 06565_ CN-DFO(E): "How are there so many of them? Surely our efforts have been convincing enough throughout recent cycles." 06567_ FF-H35(x) sneak attacks. 06568_ KA-3YA(E) destroyed. 06570_ Wheel destroyed. 06571_ SG-FCS(g) suffers critical hit (Burn). Companion Sword: "At the speed we're moving, our only effective mode of combat is defensive. Too bad." 06572_ HE-U24(g) destroyed. 06576_ SG-FCS(g) destroyed. Map ----- +----------------------------------------------------+ | | | | | | | | | | | | | | | | | ?????????????????????????????????????????????????? | | ?????????????????????????????????????????????????? | | ?????????????????????????????????????????????????? | | ?????????????????????????????????????????????????? | | ?????????????????????????????????????????????????? | | ?????????????????????????????????????????????????? | | ?????????????????????????????????????????????????? | | ?????????????????????????????????????????????????? | | ?????????????????????????????????????????????????? | | ?????????????????????????????????????????????????? | | ?????????????????????????????????????????????????? | | ???????????????????????????#####?????????????????? | | ???????????????????????????#"""#?????????????????? | | ??????###?#####???####?????#"%[#?????????????????? | | ?????#""|?#"""#??## ##????#[j=#?????????????????? | | #""!##"" ##! "#### ######=j*##????????????????? | | [[ =[!!!=x!%!#????????????????? | | !![ =[@[E=[*!#????????????????? | | ################## ######!####????????????????? | | ?????????????????## ##????##/#??????????????????? | | ??????????????????# #???????#"#?????????????????? | | #####????????????#" #????????"""????????????????? | | """"""#??????????## #?????????""#???????????????? | | """"""#???????????# #??????????"#???????????????? | | """"""#???????????# #???????????#???????????????? | | """"""#?????###???# #??"????????????????????????? | | """#??#!?!!"""?# #??""???????????????????????? | | """#??#="" ||" #!!#?" ?????????????????????? | | """#??#="" || #%!#?" "?????????????????????? | | """"#??#= "" "#=*#"" ??????????????????????? | | """#??#" " # # ???????????????????????? | | "#??#" # #" ????????????????????????? | | # #####??#### ##### ## #????????????????????????? | | # ########### ##### ## ##???##??????????????????? | | " """"""""""" """"" "" "#??? ######?????????????? | | "#?? #?????????????? | | "#?? ###????????????? | | "#?" #????????????? | | "##" ##??????????????? | | " #?????????????? | | """"""""""""""""""" "##" #????????????? | | """"""""""""""""""" "#?" ###????????????? | +----------------------------------------------------+ Best States ------------- Heat Dissipation 39 Energy Generation 10 Energy Capacity 250 Matter Stores 300 Matter Capacity 300 Sight Range 16 Terrain Scan Density 10 Evasion (%) 50 Recoil Reduction 2 Item Schematics ----------------- None Robot Schematics ------------------ None Fabricated ------------ Nothing Repaired ---------- Assault Rifle | 31% | -10/Materials Studied --------- None Alien Tech Used ----------------- None Achievements -------------- None Challenges ------------ None Game ------ Seed SupersonicBoltBrace Manual? 0 Play Time 00:20:08 Cumulative 53.4 hours Start 2026.07.17 @ 18:16:10 End 2026.07.17 @ 18:36:08 Sessions 1 Manual Loads 0 Difficulty Rogue Special Mode None Game No. 235 Rogue 190 Adventurer 45 Explorer 0 Win Type - Total 1 Types 1/0/0/0/0/0/0/0/0/0 Lore% 63 Gallery% 42 Achievement% 38 Wizard Run 0 Options --------- Layout 1 ASCII 0 Keyboard 0 Movement Numpad Keybinds 0 Fullscreen 1 Font 24/Smallcaps Map View 50x35 Zoom Use 0% Tactical HUD 1 Map Filters NONE Filters NONE Steam 1 RUN: 2d941fb2-45cc-4dad-b739-5d72f1906c77